fUSD/lending_fUSD_20240420
["ID","MTS","AMOUNT","RATE_DAILY","PERIOD"]
[323024509,1713600647885,-1401.23,0.00015068,2]
[323024510,1713600647894,-1039.74,0.00015068,2]
[323024511,1713600647903,-4691.46,0.00015068,2]
[323024512,1713600647913,-1630.33,0.00015068,2]
[323024513,1713600647923,-500.0,0.00015068,2]
[323024514,1713600647932,-741.03,0.00015068,2]
[323024515,1713600647941,-534.8,0.00015068,2]
[323024516,1713600647950,-500.0,0.00015068,2]
[323024517,1713600647959,-2160.78,0.00015068,2]
[323024518,1713600647968,-500.0,0.00015068,2]
[323024519,1713600647977,-500.0,0.00015068,2]
[323024520,1713600647987,-2245.5,0.00015068,2]
[323024521,1713600647996,-3687.6,0.00015068,2]
[323024522,1713600648005,-500.0,0.00015068,2]
[323024523,1713600648015,-755.8,0.00015068,2]
[323024524,1713600648024,-771.7,0.00015068,2]
[323024525,1713600648033,-1513.34,0.00015068,2]
[323024526,1713600648043,-2521.72,0.00015068,2]
[323024527,1713600648052,-500.0,0.00015068,2]
[323024528,1713600648061,-550.23,0.00015068,2]
[323024529,1713600648071,-620.33,0.00015068,2]
[323024530,1713600648080,-1816.36,0.00015068,2]
[323024531,1713600648090,-1103.02,0.00015068,2]
[323024532,1713600648099,-500.0,0.00015068,2]
[323024533,1713600648108,-2136.78,0.00015068,2]
[323024534,1713600648118,-958.78,0.00015068,2]
[323024535,1713600648126,-500.0,0.00015068,2]
[323024536,1713600648135,-500.0,0.00015068,2]
[323024537,1713600648144,-1158.67,0.00015068,2]
[323024538,1713600648153,-784.74,0.00015068,2]
[323024539,1713600648162,-2386.43,0.00015068,2]
[323024540,1713600648171,-500.0,0.00015068,2]
[323024541,1713600648180,-562.18,0.00015068,2]
[323024542,1713600648189,-502.80113783,0.00015068,2]
[323024543,1713600648198,-534.55,0.00015068,2]
[323024544,1713600648206,-1545.93,0.00015068,2]
[323024545,1713600648215,-500.0,0.00015068,2]
[323024546,1713600648224,-1112.17,0.00015068,2]
[323024547,1713600648234,-735.71,0.00015068,2]
[323024548,1713600648242,-185.74824588,0.00015068,2]
[323024549,1713600648252,-500.0,0.00015068,2]
[323024550,1713600648261,-797.83,0.00015068,2]
[323024551,1713600648270,-831.81,0.00015068,2]
[323024552,1713600648280,-500.0,0.00015068,2]
[323024553,1713600648288,-608.87,0.00015068,2]
[323024554,1713600648297,-585.20477983,0.00015068,2]
[323024555,1713600648307,-2279.98,0.00015068,2]
[323024556,1713600648316,-500.0,0.00015068,2]
[323024557,1713600648325,-500.0,0.00015068,2]
[323024558,1713600648334,-1131.59,0.00015068,2]
[323024559,1713600648343,-3525.39,0.00015068,2]
[323024560,1713600648352,-1339.05,0.00015068,2]
[323024561,1713600648361,-3085.38,0.00015068,2]
[323024562,1713600648370,-500.0,0.00015068,2]
[323024563,1713600648379,-11644.69,0.00015068,2]
[323024564,1713600648388,-500.0,0.00015068,2]
[323024565,1713600648397,-661.06,0.00015068,2]
[323024566,1713600648406,-500.0,0.00015068,2]
[323024567,1713600648415,-559.4,0.00015068,2]
[323024568,1713600648425,-606.89,0.00015068,2]
[323024569,1713600648434,-713.27,0.00015068,2]
[323024570,1713600648443,-500.0,0.00015068,2]
[323024571,1713600648452,-500.0,0.00015068,2]
[323024572,1713600648461,-5228.49,0.00015068,2]
[323024573,1713600648471,-500.0,0.00015068,2]
[323024574,1713600648480,-3967.38,0.00015068,2]
[323024575,1713600648490,-555.06,0.00015068,2]
[323024576,1713600648499,-3663.8,0.00015068,2]
[323024577,1713600648508,-500.0,0.00015068,2]
[323024578,1713600648517,-1885.64,0.00015068,2]
[323024579,1713600648527,-520.64433811,0.00015068,2]
[323024580,1713600648537,-500.0,0.00015068,2]
[323024581,1713600648546,-630.83,0.00015068,2]
[323024582,1713600648556,-4670.67,0.00015068,2]
[323024583,1713600648565,-1862.52,0.00015068,2]
[323024584,1713600648574,-500.0,0.00015068,2]
[323024585,1713600648584,-5684.91,0.00015068,2]
[323024586,1713600648593,-19004.64,0.00015068,2]
[323024587,1713600648602,-1467.84,0.00015068,2]
[323024588,1713600648611,-500.0,0.00015068,2]
[323024589,1713600648620,-500.0,0.00015068,2]
[323024590,1713600648629,-607.66,0.00015068,2]
[323024591,1713600648638,-1430.21,0.00015068,2]
[323024592,1713600648647,-500.0,0.00015068,2]
[323024593,1713600648656,-3118.09,0.00015068,2]
[323024594,1713600648665,-500.0,0.00015068,2]
[323024595,1713600648675,-516.39,0.00015068,2]
[323024596,1713600648684,-500.0,0.00015068,2]
[323024597,1713600648693,-8458.72,0.00015068,2]
[323024598,1713600648702,-500.0,0.00015068,2]
[323024599,1713600648711,-500.0,0.00015068,2]
[323024600,1713600648720,-327.48037992,0.00015068,2]
[323024601,1713600648729,-500.0,0.00015068,2]
[323024602,1713600648738,-746.62,0.00015068,2]
[323024603,1713600648747,-500.0,0.00015068,2]
[323024604,1713600648756,-500.0,0.00015068,2]
[323024605,1713600648765,-860.47,0.00015068,2]
[323024606,1713600648773,-501.38,0.00015068,2]
[323024607,1713600648782,-861.39,0.00015068,2]
[323024608,1713600648791,-500.0,0.00015068,2]
[323024609,1713600648800,-1353.66,0.00015068,2]
[323024610,1713600648810,-500.0,0.00015068,2]
[323024611,1713600648819,-2371.31,0.00015068,2]
[323024612,1713600648828,-2454.99,0.00015068,2]
[323024613,1713600648837,-500.0,0.00015068,2]
[323024614,1713600648846,-500.0,0.00015068,2]
[323024615,1713600648855,-500.0,0.00015068,2]
[323024616,1713600648865,-500.0,0.00015068,2]
[323024617,1713600648874,-692.9,0.00015068,2]
[323024618,1713600648886,-500.0,0.00015068,2]
[323024619,1713600648894,-500.0,0.00015068,2]
[323024620,1713600648903,-1873.41,0.00015068,2]
[323024621,1713600648912,-199.92,0.00015068,2]
[323024622,1713600648923,-734.0,0.000151,2]
[323024623,1713600648933,-3007.0,0.000151,2]
[323024624,1713600648942,-500.0,0.0001511,2]
[323024625,1713600648953,-500.0,0.0001511,2]
[323024626,1713600648963,-500.0,0.0001511,2]
[323024627,1713600648973,-500.0,0.0001511,2]
[323024628,1713600648982,-500.0,0.0001511,2]
[323024629,1713600648991,-500.0,0.0001511,2]
[323024630,1713600649000,-500.0,0.0001511,2]
[323024631,1713600649009,-500.0,0.0001511,2]
[323024632,1713600649018,-500.0,0.0001511,2]
[323024633,1713600649027,-500.0,0.0001511,2]
[323024634,1713600649037,-500.0,0.0001511,2]
[323024635,1713600649046,-500.0,0.0001511,2]
[323024636,1713600649057,-500.0,0.0001511,2]
[323024637,1713600649066,-500.0,0.0001511,2]
[323024638,1713600649076,-500.0,0.0001511,2]
[323024639,1713600649084,-500.0,0.0001511,2]
[323024640,1713600649094,-500.0,0.0001511,2]
[323024641,1713600649103,-500.0,0.0001511,2]
[323024642,1713600649112,-500.0,0.0001511,2]
[323024643,1713600649121,-500.0,0.0001511,2]
[323024644,1713600649131,-500.0,0.0001511,2]
[323024645,1713600649141,-500.0,0.0001511,2]
[323024646,1713600649152,-500.0,0.0001511,2]
[323024647,1713600649163,-500.0,0.0001511,2]
[323024648,1713600649173,-500.0,0.0001511,2]
[323024649,1713600649182,-500.0,0.0001511,2]
[323024650,1713600649191,-500.0,0.0001511,2]
[323024651,1713600649200,-500.0,0.0001511,2]
[323024652,1713600649210,-500.0,0.0001511,2]
[323024653,1713600649221,-500.0,0.0001511,2]
[323024654,1713600649260,-500.0,0.0001511,2]
[323024655,1713600649270,-500.0,0.0001511,2]
[323024656,1713600649280,-500.0,0.0001511,2]
[323024657,1713600649291,-500.0,0.0001511,2]
[323024658,1713600649301,-500.0,0.0001511,2]
[323024659,1713600649312,-500.0,0.0001511,2]
[323024660,1713600649322,-500.0,0.0001511,2]
[323024661,1713600649332,-500.0,0.0001511,2]
[323024662,1713600649343,-500.0,0.0001511,2]
[323024663,1713600649353,-500.0,0.0001511,2]
[323024664,1713600649362,-500.0,0.0001511,2]
[323024665,1713600649372,-500.0,0.0001511,2]
[323024666,1713600649382,-500.0,0.0001511,2]
[323024667,1713600649393,-500.0,0.0001511,2]
[323024668,1713600649404,-500.0,0.0001511,2]
[323024669,1713600649415,-500.0,0.0001511,2]
[323024670,1713600649429,-500.0,0.0001511,2]
[323024671,1713600649439,-500.0,0.0001511,2]
[323024672,1713600649450,-500.0,0.0001511,2]
[323024673,1713600649461,-500.0,0.0001511,2]
[323024674,1713600649470,-500.0,0.0001511,2]
[323024675,1713600649481,-500.0,0.0001511,2]
[323024676,1713600649492,-500.0,0.0001511,2]
[323024677,1713600649502,-500.0,0.0001511,2]
[323024678,1713600649512,-500.0,0.0001511,2]
[323024679,1713600649524,-500.0,0.0001511,2]
[323024680,1713600649535,-500.0,0.0001511,2]
[323024681,1713600649548,-475.14,0.0001511,2]
[323024682,1713600649560,-500.0,0.0001511,2]
[323024683,1713600649570,-500.0,0.0001511,2]
[323024684,1713600649579,-500.0,0.0001511,2]
[323024685,1713600649590,-500.0,0.0001511,2]
[323024686,1713600649600,-500.0,0.0001511,2]
[323024687,1713600649610,-500.0,0.0001511,2]
[323024688,1713600649621,-500.0,0.0001511,2]
[323024689,1713600649631,-500.0,0.0001511,2]
[323024690,1713600649642,-500.0,0.0001511,2]
[323024691,1713600649654,-500.0,0.0001511,2]
[323024692,1713600649665,-500.0,0.0001511,2]
[323024693,1713600649676,-500.0,0.0001511,2]
[323024694,1713600649687,-500.0,0.0001511,2]
[323024695,1713600649698,-500.0,0.0001511,2]
[323024696,1713600649709,-500.0,0.0001511,2]
[323024697,1713600649720,-500.0,0.0001511,2]
[323024698,1713600649730,-500.0,0.0001511,2]
[323024699,1713600649740,-500.0,0.0001511,2]
[323024700,1713600649750,-500.0,0.0001511,2]
[323024701,1713600649760,-500.0,0.0001511,2]
[323024702,1713600649770,-500.0,0.0001511,2]
[323024703,1713600649780,-500.0,0.0001511,2]
[323024704,1713600649790,-500.0,0.0001511,2]
[323024705,1713600649800,-293.78,0.0001511,2]
[323024706,1713600649811,-500.0,0.0001511,2]
[323024707,1713600649820,-500.0,0.0001511,2]
[323024708,1713600649830,-500.0,0.0001511,2]
[323024709,1713600649840,-500.0,0.0001511,2]
[323024710,1713600649850,-501.73,0.0001511,2]
[323024711,1713600649860,-500.0,0.0001511,2]
[323024712,1713600649869,-500.0,0.0001511,2]
[323024713,1713600649881,-500.0,0.0001511,2]
[323024714,1713600649890,-363.65,0.0001511,2]
[323024715,1713600649900,-500.0,0.0001511,2]
[323024716,1713600649910,-500.0,0.0001511,2]
[323024717,1713600649920,-500.0,0.0001511,2]
[323024718,1713600649930,-500.0,0.0001511,2]
[323024719,1713600649940,-500.0,0.0001511,2]
[323024720,1713600649949,-500.0,0.0001511,2]
[323024721,1713600649959,-500.0,0.0001511,2]
[323024722,1713600649969,-500.0,0.0001511,2]
[323024723,1713600649978,-500.0,0.0001511,2]
[323024724,1713600649987,-500.0,0.0001511,2]
[323024725,1713600649996,-500.0,0.0001511,2]
[323024726,1713600650006,-214.09,0.0001511,2]
[323024727,1713600650015,-500.0,0.0001511,2]
[323024728,1713600650024,-500.0,0.0001511,2]
[323024729,1713600650034,-500.0,0.0001511,2]
[323024730,1713600650043,-500.0,0.0001511,2]
[323024731,1713600650055,-500.0,0.0001511,2]
[323024732,1713600650064,-500.0,0.0001511,2]
[323024733,1713600650074,-500.0,0.0001511,2]
[323024734,1713600650085,-500.0,0.0001511,2]
[323024735,1713600650095,-500.0,0.0001511,2]
[323024736,1713600650105,-500.0,0.0001511,2]
[323024737,1713600650116,-500.0,0.0001511,2]
[323024738,1713600650126,-500.0,0.0001511,2]
[323024739,1713600650137,-500.0,0.0001511,2]
[323024740,1713600650149,-352.38,0.0001511,2]
[323024741,1713600650158,-500.0,0.0001511,2]
[323024742,1713600650169,-500.0,0.0001511,2]
[323024743,1713600650178,-500.0,0.0001511,2]
[323024744,1713600650188,-5388.46901384,0.00015143,2]
[323024745,1713600650199,-186.37642869,0.00015147,2]
[323024746,1713600650210,-3455.96497567,0.00015158,2]
[323024747,1713600650221,-2871.85961764,0.00015195,2]
[323024748,1713600650231,-628.65184896,0.00015242,2]
[323024749,1713600650242,-672.0,0.00015284,2]
[323024750,1713600650252,-1539.60652388,0.00015291,2]
[323024751,1713600650262,-574.84238152,0.00015293,2]
[323024752,1713600650273,-9875.0067945,0.00015293,2]
[323024753,1713600650284,-5388.46901384,0.00015318,2]
[323024754,1713600650294,-186.37642869,0.0001533,2]
[323024755,1713600650304,-174.32406264,0.0001534,2]
[323024756,1713600650315,-300.0,0.00015341,2]
[323024757,1713600650325,-500.0,0.00015342,2]
[323024758,1713600650334,-500.0,0.00015342,2]
[323024759,1713600650344,-500.0,0.00015342,2]
[323024760,1713600650355,-570.89,0.00015342,2]
[323024761,1713600650366,-500.0,0.00015342,2]
[323024762,1713600650375,-638.7,0.00015342,2]
[323024763,1713600650386,-500.0,0.00015342,2]
[323024764,1713600650396,-500.0,0.00015342,2]
[323024765,1713600650406,-500.0,0.00015342,2]
[323024766,1713600650417,-500.0,0.00015342,2]
[323024767,1713600650428,-500.0,0.00015342,2]
[323024768,1713600650439,-500.0,0.00015342,2]
[323024769,1713600650449,-500.0,0.00015342,2]
[323024770,1713600650458,-500.0,0.00015342,2]
[323024771,1713600650469,-500.0,0.00015342,2]
[323024772,1713600650480,-500.0,0.00015342,2]
[323024773,1713600650490,-500.0,0.00015342,2]
[323024774,1713600650501,-500.0,0.00015342,2]
[323024775,1713600650510,-500.0,0.00015342,2]
[323024776,1713600650521,-316.78828824,0.00015342,2]
[323024777,1713600650531,-500.0,0.00015342,2]
[323024778,1713600650542,-500.0,0.00015342,2]
[323024779,1713600650552,-558.33,0.00015342,2]
[323024780,1713600650563,-500.0,0.00015342,2]
[323024781,1713600650573,-500.0,0.00015342,2]
[323024782,1713600650583,-721.48,0.00015342,2]
[323024783,1713600650593,-500.0,0.00015342,2]
[323024784,1713600650603,-500.0,0.00015342,2]
[323024785,1713600650614,-500.0,0.00015342,2]
[323024786,1713600650625,-500.0,0.00015342,2]
[323024787,1713600650635,-500.0,0.00015342,2]
[323024788,1713600650646,-500.0,0.00015342,2]
[323024789,1713600650656,-500.0,0.00015342,2]
[323024790,1713600650666,-500.0,0.00015342,2]
[323024791,1713600650675,-500.0,0.00015342,2]
[323024792,1713600650685,-513.28,0.00015342,2]
[323024793,1713600650696,-500.0,0.00015342,2]
[323024794,1713600650706,-500.0,0.00015342,2]
[323024795,1713600650716,-500.0,0.00015342,2]
[323024796,1713600650727,-597.57,0.00015342,2]
[323024797,1713600650737,-500.0,0.00015342,2]
[323024798,1713600650747,-500.0,0.00015342,2]
[323024799,1713600650757,-500.0,0.00015342,2]
[323024800,1713600650768,-500.0,0.00015342,2]
[323024801,1713600650777,-500.0,0.00015342,2]
[323024802,1713600650787,-500.0,0.00015342,2]
[323024803,1713600650797,-500.0,0.00015342,2]
[323024804,1713600650807,-500.0,0.00015342,2]
[323024805,1713600650816,-1006.64,0.00015342,2]
[323024806,1713600650826,-500.0,0.00015342,2]
[323024807,1713600650835,-500.0,0.00015342,2]
[323024808,1713600650845,-699.35,0.00015342,2]
[323024809,1713600650855,-500.0,0.00015342,2]
[323024810,1713600650865,-500.0,0.00015342,2]
[323024811,1713600650875,-783.99,0.00015342,2]
[323024812,1713600650889,-500.0,0.00015342,2]
[323024813,1713600650898,-811.96,0.00015342,2]
[323024814,1713600650908,-500.0,0.00015342,2]
[323024815,1713600650918,-500.0,0.00015342,2]
[323024816,1713600650928,-526.38,0.00015342,2]
[323024817,1713600650937,-500.0,0.00015342,2]
[323024818,1713600650946,-500.0,0.00015342,2]
[323024819,1713600650956,-606.99,0.00015342,2]
[323024820,1713600650966,-554.43,0.00015342,2]
[323024821,1713600650976,-500.0,0.00015342,2]
[323024822,1713600650985,-572.9,0.00015342,2]
[323024823,1713600650994,-500.0,0.00015342,2]
[323024824,1713600651005,-500.0,0.00015342,2]
[323024825,1713600651017,-500.0,0.00015342,2]
[323024826,1713600651027,-500.0,0.00015342,2]
[323024827,1713600651038,-500.0,0.00015342,2]
[323024828,1713600651049,-500.0,0.00015342,2]
[323024829,1713600651061,-500.0,0.00015342,2]
[323024830,1713600651071,-505.81,0.00015342,2]
[323024831,1713600651081,-500.0,0.00015342,2]
[323024832,1713600651091,-500.0,0.00015342,2]
[323024833,1713600651101,-579.83,0.00015342,2]
[323024834,1713600651113,-500.0,0.00015342,2]
[323024835,1713600651124,-500.0,0.00015342,2]
[323024836,1713600651134,-500.0,0.00015342,2]
[323024837,1713600651145,-500.0,0.00015342,2]
[323024838,1713600651156,-500.0,0.00015342,2]
[323024839,1713600651166,-500.0,0.00015342,2]
[323024840,1713600651177,-992.23,0.00015342,2]
[323024841,1713600651187,-623.15,0.00015342,2]
[323024842,1713600651197,-500.0,0.00015342,2]
[323024843,1713600651209,-1147.23,0.00015342,2]
[323024844,1713600651219,-500.0,0.00015342,2]
[323024845,1713600651228,-500.0,0.00015342,2]
[323024846,1713600651238,-500.0,0.00015342,2]
[323024847,1713600651247,-500.0,0.00015342,2]
[323024848,1713600651256,-524.7,0.00015342,2]
[323024849,1713600651265,-535.36,0.00015342,2]
[323024850,1713600651274,-500.0,0.00015342,2]
[323024851,1713600651283,-500.0,0.00015342,2]
[323024852,1713600651292,-561.86,0.00015342,2]
[323024853,1713600651303,-526.21,0.00015342,2]
[323024854,1713600651312,-500.0,0.00015342,2]
[323024855,1713600651321,-600.48,0.00015342,2]
[323024856,1713600651330,-802.06,0.00015342,2]
[323024857,1713600651341,-603.21,0.00015342,2]
[323024858,1713600651350,-782.58,0.00015342,2]
[323024859,1713600651359,-572.46,0.00015342,2]
[323024860,1713600651368,-751.77,0.00015342,2]
[323024861,1713600651377,-500.0,0.00015342,2]
[323024862,1713600651387,-500.0,0.00015342,2]
[323024863,1713600651396,-500.0,0.00015342,2]
[323024864,1713600651405,-500.0,0.00015342,2]
[323024865,1713600651415,-500.0,0.00015342,2]
[323024866,1713600651424,-500.0,0.00015342,2]
[323024867,1713600651434,-500.0,0.00015342,2]
[323024868,1713600651443,-500.0,0.00015342,2]
[323024869,1713600651453,-500.0,0.00015342,2]
[323024870,1713600651463,-526.49,0.00015342,2]
[323024871,1713600651472,-500.0,0.00015342,2]
[323024872,1713600651481,-687.47,0.00015342,2]
[323024873,1713600651490,-720.9,0.00015342,2]
[323024874,1713600651500,-500.0,0.00015342,2]
[323024875,1713600651509,-500.0,0.00015342,2]
[323024876,1713600651518,-500.0,0.00015342,2]
[323024877,1713600651528,-763.76,0.00015342,2]
[323024878,1713600651537,-500.0,0.00015342,2]
[323024879,1713600651546,-500.0,0.00015342,2]
[323024880,1713600651557,-500.0,0.00015342,2]
[323024881,1713600651567,-500.0,0.00015342,2]
[323024882,1713600651577,-500.0,0.00015342,2]
[323024883,1713600651586,-500.0,0.00015342,2]
[323024884,1713600651595,-500.0,0.00015342,2]
[323024885,1713600651605,-500.0,0.00015342,2]
[323024886,1713600651614,-991.74,0.00015342,2]
[323024887,1713600651623,-532.54,0.00015342,2]
[323024888,1713600651633,-500.0,0.00015342,2]
[323024889,1713600651642,-500.0,0.00015342,2]
[323024890,1713600651651,-679.73,0.00015342,2]
[323024891,1713600651660,-694.39,0.00015342,2]
[323024892,1713600651669,-500.0,0.00015342,2]
[323024893,1713600651679,-500.0,0.00015342,2]
[323024894,1713600651688,-500.0,0.00015342,2]
[323024895,1713600651697,-260.5122861,0.00015342,2]
[323024896,1713600651706,-594.56,0.00015342,2]
[323024897,1713600651716,-943.0,0.00015342,2]
[323024898,1713600651725,-500.0,0.00015342,2]
[323024899,1713600651734,-635.57,0.00015342,2]
[323024900,1713600651743,-500.0,0.00015342,2]
[323024901,1713600651752,-500.0,0.00015342,2]
[323024902,1713600651761,-500.0,0.00015342,2]
[323024903,1713600651771,-500.0,0.00015342,2]
[323024904,1713600651780,-699.91,0.00015342,2]
[323024905,1713600651790,-500.0,0.00015342,2]
[323024906,1713600651799,-500.0,0.00015342,2]
[323024907,1713600651809,-500.0,0.00015342,2]
[323024908,1713600651818,-526.74,0.00015342,2]
[323024909,1713600651828,-500.0,0.00015342,2]
[323024910,1713600651838,-500.0,0.00015342,2]
[323024911,1713600651848,-500.0,0.00015342,2]
[323024912,1713600651858,-500.0,0.00015342,2]
[323024913,1713600651867,-500.0,0.00015342,2]
[323024914,1713600651879,-500.0,0.00015342,2]
[323024915,1713600651889,-500.0,0.00015342,2]
[323024916,1713600651901,-500.0,0.00015342,2]
[323024917,1713600652029,-500.0,0.00015342,2]
[323024918,1713600652048,-823.75,0.00015342,2]
[323024919,1713600652059,-500.0,0.00015342,2]
[323024920,1713600652069,-500.0,0.00015342,2]
[323024921,1713600652079,-500.0,0.00015342,2]
[323024922,1713600652089,-500.0,0.00015342,2]
[323024923,1713600652099,-500.0,0.00015342,2]
[323024924,1713600652109,-500.0,0.00015342,2]
[323024925,1713600652120,-539.16,0.00015342,2]
[323024926,1713600652129,-500.0,0.00015342,2]
[323024927,1713600652139,-640.13,0.00015342,2]
[323024928,1713600652150,-500.0,0.00015342,2]
[323024929,1713600652159,-635.01,0.00015342,2]
[323024930,1713600652168,-507.97,0.00015342,2]
[323024931,1713600652178,-500.0,0.00015342,2]
[323024932,1713600652187,-500.0,0.00015342,2]
[323024933,1713600652196,-525.38632097,0.00015342,2]
[323024934,1713600652206,-512.95,0.00015342,2]
[323024935,1713600652216,-500.0,0.00015342,2]
[323024936,1713600652225,-559.9,0.00015342,2]
[323024937,1713600652235,-500.0,0.00015342,2]
[323024938,1713600652245,-618.87,0.00015342,2]
[323024939,1713600652256,-810.63,0.00015342,2]
[323024940,1713600652266,-500.0,0.00015342,2]
[323024941,1713600652277,-500.0,0.00015342,2]
[323024942,1713600652288,-500.0,0.00015342,2]
[323024943,1713600652299,-556.7,0.00015342,2]
[323024944,1713600652310,-500.0,0.00015342,2]
[323024945,1713600652320,-500.0,0.00015342,2]
[323024946,1713600652331,-846.56,0.00015342,2]
[323024947,1713600652341,-1494.16,0.00015342,2]
[323024948,1713600652352,-500.0,0.00015342,2]
[323024949,1713600652364,-500.0,0.00015342,2]
[323024950,1713600652376,-500.0,0.00015342,2]
[323024951,1713600652387,-500.0,0.00015342,2]
[323024952,1713600652397,-588.32,0.00015342,2]
[323024953,1713600652408,-797.28,0.00015342,2]
[323024954,1713600652418,-500.0,0.00015342,2]
[323024955,1713600652428,-1382.37,0.00015342,2]
[323024956,1713600652439,-500.0,0.00015342,2]
[323024957,1713600652450,-500.0,0.00015342,2]
[323024958,1713600652462,-569.44,0.00015342,2]
[323024959,1713600652474,-1432.46,0.00015342,2]
[323024960,1713600652484,-500.0,0.00015342,2]
[323024961,1713600652494,-500.0,0.00015342,2]
[323024962,1713600652504,-874.03,0.00015342,2]
[323024963,1713600652514,-500.0,0.00015342,2]
[323024964,1713600652524,-998.78,0.00015342,2]
[323024965,1713600652536,-500.0,0.00015342,2]
[323024966,1713600652546,-500.0,0.00015342,2]
[323024967,1713600652559,-500.0,0.00015342,2]
[323024968,1713600652570,-500.0,0.00015342,2]
[323024969,1713600652581,-500.0,0.00015342,2]
[323024970,1713600652592,-500.0,0.00015342,2]
[323024971,1713600652602,-698.54,0.00015342,2]
[323024972,1713600652614,-500.0,0.00015342,2]
[323024973,1713600652624,-960.25,0.00015342,2]
[323024974,1713600652634,-500.0,0.00015342,2]
[323024975,1713600652645,-500.0,0.00015342,2]
[323024976,1713600652656,-1065.63,0.00015342,2]
[323024977,1713600652666,-500.0,0.00015342,2]
[323024978,1713600652677,-500.0,0.00015342,2]
[323024979,1713600652687,-1403.4,0.00015342,2]
[323024980,1713600652697,-150.0,0.00015342,2]
[323024981,1713600652708,-500.0,0.00015342,2]
[323024982,1713600652718,-500.0,0.00015342,2]
[323024983,1713600652728,-500.0,0.00015342,2]
[323024984,1713600652739,-516.78,0.00015342,2]
[323024985,1713600652750,-1348.73,0.00015342,2]
[323024986,1713600652760,-500.0,0.00015342,2]
[323024987,1713600652771,-1403.1,0.00015342,2]
[323024988,1713600652782,-500.0,0.00015342,2]
[323024989,1713600652793,-878.26,0.00015342,2]
[323024990,1713600652802,-500.0,0.00015342,2]
[323024991,1713600652812,-257.99218223,0.00015342,2]
[323024992,1713600652822,-500.0,0.00015342,2]
[323024993,1713600652833,-691.1,0.00015342,2]
[323024994,1713600652844,-500.0,0.00015342,2]
[323024995,1713600652854,-500.0,0.00015342,2]
[323024996,1713600652864,-500.0,0.00015342,2]
[323024997,1713600652874,-500.0,0.00015342,2]
[323024998,1713600652887,-939.17,0.00015342,2]
[323024999,1713600652896,-742.21,0.00015342,2]
[323025000,1713600652906,-500.0,0.00015342,2]
[323025001,1713600652916,-600.65,0.00015342,2]
[323025002,1713600652926,-500.0,0.00015342,2]
[323025003,1713600652935,-500.0,0.00015342,2]
[323025004,1713600652946,-1145.76,0.00015342,2]
[323025005,1713600652960,-500.0,0.00015342,2]
[323025006,1713600652969,-1292.49,0.00015342,2]
[323025007,1713600652980,-500.0,0.00015342,2]
[323025008,1713600652990,-500.0,0.00015342,2]